[Event "ONJK 2024 ABC"]
[Site "Velp, Netherlands"]
[Date "2024.08.05"]
[Round "5.8"]
[White "Hagen, Carlijn"]
[Black "De Rycke, Killian"]
[Result "1-0"]
[TimeControl "90 minutes + 30 seconds"]
[WhiteElo "1645"]
[BlackElo "1751"]

1. d4 {[%clk 01:30:59]} e6 {[%clk 01:30:09]} {[%emt 00:00:52]} 2. Bf4 {[%clk
01:31:21]} {[%emt 00:00:07]} d5 {[%clk 01:30:14]} {[%emt 00:00:24]} 3. e3
{[%clk 01:31:44]} {[%emt 00:00:08]} c5 {[%clk 01:29:44]} {[%emt 00:01:00]} 4.
c3 {[%clk 01:32:07]} {[%emt 00:00:07]} Nc6 {[%clk 01:29:15]} {[%emt 00:00:59]}
5. Nf3 {[%clk 01:32:15]} {[%emt 00:00:22]} Nf6 {[%clk 01:28:55]} {[%emt
00:00:49]} 6. Bd3 {[%clk 01:32:20]} {[%emt 00:00:25]} Be7 {[%clk 01:27:53]}
{[%emt 00:01:32]} 7. Nbd2 {[%clk 01:32:22]} {[%emt 00:00:28]} O-O {[%clk
01:27:13]} {[%emt 00:01:10]} 8. h4 {[%clk 01:32:10]} {[%emt 00:00:43]} cxd4
{[%clk 01:23:57]} {[%emt 00:03:45]} 9. exd4 {[%clk 01:32:09]} {[%emt 00:00:32]}
Bd6 {[%clk 01:19:27]} {[%emt 00:05:00]} 10. Ne5 {[%clk 01:31:37]} {[%emt
00:01:01]} Bxe5 {[%clk 01:06:30]} {[%emt 00:13:27]} 11. Bxe5 {[%clk 01:31:03]}
{[%emt 00:01:05]} Nxe5 {[%clk 01:05:35]} {[%emt 00:01:25]} 12. dxe5 {[%clk
01:31:25]} {[%emt 00:00:07]} Nd7 {[%clk 01:05:15]} {[%emt 00:00:51]} 13. f4
{[%clk 01:29:52]} {[%emt 00:02:03]} Qb6 {[%clk 00:53:52]} {[%emt 00:19:23]} 14.
Qc2 {[%clk 01:11:14]} {[%emt 00:12:38]} Qe3+ {[%clk 00:52:22]} {[%emt
00:02:00]} 15. Kd1 {[%clk 01:11:36]} {[%emt 00:00:08]} Qxf4 {[%clk 00:42:19]}
{[%emt 00:10:32]} 16. Bxh7+ {[%clk 01:08:52]} {[%emt 00:03:14]} Kh8 {[%clk
00:42:30]} {[%emt 00:00:19]} 17. Nf3 {[%clk 01:06:04]} {[%emt 00:03:18]} Nxe5
{[%emt 00:03:06]} 18. Ng5 {[%clk 01:05:19]} {[%emt 00:01:13]} Ng4 {[%clk
00:38:17]} {[%emt 00:02:09]} 19. Qe2 {[%clk 01:02:06]} {[%emt 00:03:44]} Nf2+
{[%clk 00:21:57]} {[%emt 00:16:51]} 20. Kc2 {[%clk 01:02:14]} {[%emt 00:00:22]}
Nxh1 {[%clk 00:21:21]} {[%emt 00:01:06]} 21. Rxh1 {[%clk 01:02:03]} {[%emt
00:00:40]} e5 {[%clk 00:14:54]} {[%emt 00:06:58]} 22. Rf1 {[%clk 00:54:46]}
{[%emt 00:07:47]} Qxh4 {[%clk 00:14:36]} {[%emt 00:00:48]} 23. Qxe5 {[%clk
00:55:11]} {[%emt 00:00:06]} f6 {[%clk 00:07:43]} {[%emt 00:07:23]} 24. Qe7
{[%clk 00:43:29]} {[%emt 00:12:11]} Bg4 {[%clk 00:06:03]} {[%emt 00:02:11]} 25.
Bd3 {[%clk 00:33:59]} {[%emt 00:09:59]} Rae8 {[%clk 00:04:02]} {[%emt
00:02:30]} 26. Nf7+ {[%clk 00:31:26]} {[%emt 00:03:04]} Kg8 {[%clk 00:04:27]}
{[%emt 00:00:04]} 27. Qb4 {[%clk 00:28:55]} {[%emt 00:03:02]} Kxf7 {[%clk
00:04:50]} {[%emt 00:00:07]} 28. Qxb7+ {[%clk 00:28:53]} {[%emt 00:00:31]} Re7
{[%clk 00:05:14]} {[%emt 00:00:07]} 29. Qxd5+ {[%clk 00:28:15]} {[%emt
00:01:08]} Be6 {[%clk 00:05:33]} {[%emt 00:00:11]} 30. Qf3 {[%clk 00:26:50]}
{[%emt 00:01:55]} Qg4 {[%clk 00:05:49]} {[%emt 00:00:15]} 31. Qf2 {[%clk
00:26:43]} {[%emt 00:00:36]} Qa4+ {[%clk 00:06:10]} {[%emt 00:00:09]} 32. Kc1
{[%clk 00:26:16]} {[%emt 00:00:57]} Qg4 {[%clk 00:06:25]} {[%emt 00:00:15]} 33.
Rh1 {[%clk 00:25:32]} {[%emt 00:01:13]} Bxa2 {[%clk 00:06:33]} {[%emt
00:00:22]} 34. Qc2 {[%clk 00:22:27]} {[%emt 00:03:35]} Qg5+ {[%clk 00:06:39]}
{[%emt 00:00:23]} 35. Kd1 {[%clk 00:22:47]} {[%emt 00:00:11]} Bd5 {[%clk
00:06:50]} {[%emt 00:00:19]} 36. Rg1 {[%clk 00:22:21]} {[%emt 00:00:56]} Qg4+
{[%clk 00:06:55]} {[%emt 00:00:27]} 37. Kc1 {[%clk 00:22:08]} {[%emt 00:00:43]}
Be4 {[%clk 00:06:43]} {[%emt 00:00:41]} 38. Qb3+ {[%clk 00:22:18]} {[%emt
00:00:20]} Qe6 {[%clk 00:06:00]} {[%emt 00:01:13]} 39. Bc4 {[%clk 00:22:32]}
{[%emt 00:00:16]} Qxc4 {[%clk 00:05:32]} {[%emt 00:00:58]} 40. Qxc4+ {[%clk
00:22:56]} {[%emt 00:00:06]} Kg6 {[%clk 00:05:44]} {[%emt 00:00:17]} 41. Re1
{[%clk 00:22:34]} {[%emt 00:00:53]} f5 {[%clk 00:05:52]} {[%emt 00:00:22]} 42.
g4 {[%clk 00:22:17]} {[%emt 00:00:47]} Ref7 {[%clk 00:05:26]} {[%emt 00:00:56]}
43. gxf5+ {[%clk 00:20:15]} {[%emt 00:02:32]} Bxf5 {[%clk 00:05:52]} {[%emt
00:00:05]} 44. Qa6+ {[%clk 00:20:05]} {[%emt 00:00:40]} Kh7 {[%clk 00:05:59]}
{[%emt 00:00:21]} 45. Rh1+ {[%clk 00:20:11]} {[%emt 00:00:26]} Kg8 {[%clk
00:06:15]} {[%emt 00:00:14]} 46. Qc4 {[%clk 00:20:14]} {[%emt 00:00:25]} Bg6
{[%clk 00:06:07]} {[%emt 00:00:39]} 47. Rg1 {[%clk 00:19:35]} {[%emt 00:01:09]}
Bh5 {[%clk 00:06:04]} {[%emt 00:00:32]} 48. Rg5 {[%clk 00:18:50]} {[%emt
00:01:16]} Bf3 {[%clk 00:06:07]} {[%emt 00:00:28]} 49. Ra5 {[%clk 00:18:42]}
{[%emt 00:00:39]} Kh8 {[%clk 00:05:58]} {[%emt 00:00:38]} 50. Qc5 {[%clk
00:18:20]} {[%emt 00:00:39]} Be4 {[%clk 00:04:57]} {[%emt 00:01:44]} 51. Rxa7
{[%clk 00:17:26]} {[%emt 00:01:23]} Rf1+ {[%clk 00:04:13]} {[%emt 00:01:14]} 52.
Kd2 {[%clk 00:17:43]} {[%emt 00:00:14]} R1f2+ {[%clk 00:04:18]} {[%emt
00:00:25]} 53. Ke3 {[%clk 00:17:20]} {[%emt 00:00:52]} R2f3+ {[%clk 00:04:14]}
{[%emt 00:00:34]} 54. Ke2 {[%clk 00:16:52]} {[%emt 00:00:52]} Bg6 {[%emt
00:04:26]} 55. Qd4 {[%clk 00:14:41]} {[%emt 00:00:18]} R3f6 {[%clk 00:03:07]}
{[%emt 00:00:10]} 56. Re7 {[%clk 00:14:14]} {[%emt 00:00:57]} Kg8 {[%clk
00:03:12]} {[%emt 00:00:26]} 57. b4 {[%clk 00:13:38]} {[%emt 00:01:06]} Bh5+
{[%clk 00:03:25]} {[%emt 00:00:17]} 58. Kd2 {[%clk 00:12:45]} {[%emt 00:01:23]}
Rf2+ {[%clk 00:03:20]} {[%emt 00:00:36]} 59. Kc1 {[%clk 00:12:17]} {[%emt
00:00:57]} R8f6 {[%clk 00:02:48]} {[%emt 00:01:02]} 60. b5 {[%clk 00:11:04]}
{[%emt 00:01:44]} Rh2 {[%clk 00:02:54]} {[%emt 00:00:23]} 61. Qg1 {[%clk
00:10:58]} {[%emt 00:00:36]} 1-0

[Event "ONJK 2024 ABC"]
[Site "Velp, Netherlands"]
[Date "2024.08.05"]
[Round "5.9"]
[White "Balde, Esko"]
[Black "Sapulette, Jay-Giani"]
[Result "0-1"]
[TimeControl "90 minutes + 30 seconds"]
[WhiteElo "1637"]
[BlackElo "1746"]

1. d4 {[%clk 01:30:59]} Nf6 {[%clk 01:30:31]} {[%emt 00:00:29]} 2. c4 {[%clk
01:31:24]} {[%emt 00:00:05]} g6 {[%clk 01:30:58]} {[%emt 00:00:03]} 3. g3
{[%clk 01:31:51]} {[%emt 00:00:03]} Bg7 {[%clk 01:31:20]} {[%emt 00:00:09]} 4.
Bg2 {[%clk 01:32:17]} {[%emt 00:00:04]} d6 {[%clk 01:31:24]} {[%emt 00:00:26]}
5. Nc3 {[%clk 01:32:41]} {[%emt 00:00:06]} O-O {[%clk 01:31:31]} {[%emt
00:00:22]} 6. Nf3 {[%clk 01:33:09]} {[%emt 00:00:02]} c6 {[%clk 01:31:47]}
{[%emt 00:00:14]} 7. O-O {[%clk 01:33:17]} {[%emt 00:00:22]} Nbd7 {[%clk
01:31:39]} {[%emt 00:00:37]} 8. h3 {[%clk 01:32:45]} {[%emt 00:01:02]} e5
{[%clk 01:30:23]} {[%emt 00:01:46]} 9. e4 {[%clk 01:32:57]} {[%emt 00:00:19]}
Re8 {[%clk 01:29:55]} {[%emt 00:00:58]} 10. Be3 {[%clk 01:30:44]} {[%emt
00:02:44]} exd4 {[%clk 01:23:01]} {[%emt 00:07:24]} 11. Nxd4 {[%clk 01:27:17]}
{[%emt 00:03:57]} Nc5 {[%clk 01:21:58]} {[%emt 00:01:30]} 12. e5 {[%clk
01:19:18]} {[%emt 00:08:31]} Rxe5 {[%clk 01:12:42]} {[%emt 00:09:46]} 13. Bf4
{[%clk 01:13:54]} {[%emt 00:05:55]} Re8 {[%clk 01:04:12]} {[%emt 00:08:59]} 14.
Kh2 {[%clk 00:35:09]} {[%emt 00:39:15]} Nfe4 {[%clk 00:51:10]} {[%emt
00:13:32]} 15. Nce2 {[%clk 00:17:42]} {[%emt 00:17:57]} a5 {[%clk 00:40:31]}
{[%emt 00:11:09]} 16. a3 {[%clk 00:12:54]} {[%emt 00:05:19]} g5 {[%clk
00:29:46]} {[%emt 00:11:15]} 17. Be3 {[%clk 00:12:27]} {[%emt 00:00:57]} g4
{[%clk 00:22:54]} {[%emt 00:07:21]} 18. Nf4 {[%clk 00:11:07]} {[%emt 00:01:50]}
gxh3 {[%clk 00:22:29]} {[%emt 00:00:55]} 19. Bxh3 {[%clk 00:11:03]} {[%emt
00:00:34]} Bxh3 {[%clk 00:22:44]} {[%emt 00:00:15]} 20. Nxh3 {[%clk 00:11:28]}
{[%emt 00:00:05]} Qf6 {[%clk 00:13:37]} {[%emt 00:09:37]} 21. Qg4 {[%clk
00:10:38]} {[%emt 00:01:19]} Qg6 {[%clk 00:12:57]} {[%emt 00:01:10]} 22. Qxg6
{[%clk 00:08:59]} {[%emt 00:02:10]} hxg6 {[%clk 00:11:42]} {[%emt 00:01:46]} 23.
b4 {[%clk 00:08:45]} {[%emt 00:00:44]} axb4 {[%clk 00:11:41]} {[%emt 00:00:31]}
24. axb4 {[%clk 00:09:12]} {[%emt 00:00:03]} Rxa1 {[%clk 00:11:30]} {[%emt
00:00:41]} 25. Rxa1 {[%clk 00:09:37]} {[%emt 00:00:04]} Bxd4 {[%clk 00:11:20]}
{[%emt 00:00:40]} 26. Bxd4 {[%clk 00:09:44]} {[%emt 00:00:23]} Nb3 {[%clk
00:11:10]} {[%emt 00:00:40]} 27. Rd1 {[%clk 00:10:01]} {[%emt 00:00:13]} Ned2
{[%clk 00:10:45]} {[%emt 00:00:55]} 28. Be3 {[%clk 00:09:27]} {[%emt 00:01:04]}
Nxc4 {[%clk 00:10:38]} {[%emt 00:00:37]} 29. Rd3 {[%clk 00:09:01]} {[%emt
00:00:55]} Nxe3 {[%clk 00:10:35]} {[%emt 00:00:33]} 30. fxe3 {[%clk 00:09:12]}
{[%emt 00:00:20]} Nc1 {[%clk 00:10:22]} {[%emt 00:00:42]} 31. Rxd6 {[%clk
00:08:19]} {[%emt 00:01:23]} Rxe3 {[%emt 00:00:56]} 32. Rd8+ {[%clk 00:08:18]}
Kg7 {[%clk 00:10:36]} {[%emt 00:00:21]} 33. Rd7 {[%clk 00:08:23]} {[%emt
00:00:25]} Re2+ {[%clk 00:09:11]} {[%emt 00:01:55]} 34. Kg1 {[%clk 00:08:34]}
{[%emt 00:00:19]} Rb2 {[%clk 00:06:35]} {[%emt 00:03:06]} 35. Rxb7 {[%clk
00:08:19]} {[%emt 00:00:45]} Nd3 {[%clk 00:06:05]} {[%emt 00:01:00]} 36. Ng5
{[%clk 00:07:58]} {[%emt 00:00:51]} Kf6 {[%clk 00:06:22]} {[%emt 00:00:13]} 37.
Ne4+ {[%clk 00:07:30]} {[%emt 00:00:58]} Kf5 {[%clk 00:06:22]} {[%emt
00:00:30]} 38. Nd6+ {[%clk 00:07:48]} {[%emt 00:00:12]} Ke6 {[%clk 00:06:07]}
{[%emt 00:00:46]} 39. Nxf7 {[%clk 00:07:30]} {[%emt 00:00:47]} Rxb4 {[%clk
00:06:11]} {[%emt 00:00:26]} 40. Nd8+ {[%clk 00:07:33]} {[%emt 00:00:27]} Kd6
{[%clk 00:06:04]} {[%emt 00:00:35]} 41. Nf7+ {[%clk 00:05:37]} {[%emt
00:02:28]} Kc5 {[%clk 00:06:27]} {[%emt 00:00:08]} 42. Rd7 {[%clk 00:04:49]}
{[%emt 00:01:17]} Rb1+ {[%clk 00:06:35]} {[%emt 00:00:23]} 43. Kh2 {[%clk
00:04:55]} {[%emt 00:00:24]} Rb2+ {[%clk 00:05:46]} {[%emt 00:01:19]} 44. Kg1
{[%clk 00:04:45]} {[%emt 00:00:39]} Nc1 {[%clk 00:04:58]} {[%emt 00:01:19]} 45.
g4 {[%clk 00:04:28]} {[%emt 00:00:46]} Nb3 {[%clk 00:04:06]} {[%emt 00:01:22]}
46. Rd6 {[%clk 00:04:06]} {[%emt 00:00:52]} Kb5 {[%clk 00:04:04]} {[%emt
00:00:33]} 47. Rxg6 {[%clk 00:04:23]} {[%emt 00:00:13]} c5 {[%clk 00:04:20]}
{[%emt 00:00:13]} 48. Nd6+ {[%clk 00:04:40]} {[%emt 00:00:13]} Kb4 {[%clk
00:04:23]} {[%emt 00:00:22]} 49. Rf6 {[%clk 00:04:24]} {[%emt 00:00:51]} c4
{[%clk 00:04:23]} {[%emt 00:00:31]} 50. Rf4 {[%clk 00:04:42]} {[%emt 00:00:11]}
Nd2 {[%clk 00:04:24]} {[%emt 00:00:29]} 51. g5 {[%clk 00:04:26]} {[%emt
00:00:46]} Ra2 {[%clk 00:04:24]} {[%emt 00:00:31]} 52. g6 {[%clk 00:04:31]}
{[%emt 00:00:24]} Ra8 {[%clk 00:04:46]} {[%emt 00:00:09]} 53. g7 {[%clk
00:04:21]} {[%emt 00:00:40]} Rg8 {[%clk 00:05:02]} {[%emt 00:00:13]} 54. Ne8
{[%clk 00:03:49]} {[%emt 00:01:03]} Kb3 {[%clk 00:04:55]} {[%emt 00:00:37]} 55.
Rf8 {[%clk 00:04:08]} {[%emt 00:00:10]} c3 {[%clk 00:04:15]} {[%emt 00:01:12]}
56. Rxg8 {[%clk 00:02:56]} {[%emt 00:01:41]} c2 {[%clk 00:04:39]} {[%emt
00:00:06]} 57. Rh8 {[%clk 00:02:23]} {[%emt 00:01:02]} c1=Q+ {[%emt 00:00:08]}
58. Kh2 {[%clk 00:02:20]} {[%emt 00:00:32]} Nf1+ {[%clk 00:04:49]} {[%emt
00:00:43]} 59. Kg2 {[%clk 00:01:58]} {[%emt 00:00:53]} Ne3+ {[%clk 00:05:08]}
{[%emt 00:00:11]} 60. Kf2 {[%clk 00:02:01]} {[%emt 00:00:26]} Ng4+ {[%clk
00:05:25]} {[%emt 00:00:14]} 61. Kg3 {[%clk 00:01:46]} {[%emt 00:00:45]} Nf6
{[%clk 00:05:08]} {[%emt 00:00:47]} 62. g8=Q+ {[%clk 00:01:26]} {[%emt
00:00:51]} Nxg8 {[%clk 00:05:30]} {[%emt 00:00:07]} 63. Rxg8 {[%clk 00:01:47]}
{[%emt 00:00:08]} Qg1 {[%clk 00:05:44]} {[%emt 00:00:16]} 0-1

[Event "ONJK 2024 ABC"]
[Site "Velp, Netherlands"]
[Date "2024.08.05"]
[Round "5.10"]
[White "Henckens, Elof"]
[Black "Frederiks, Jesse"]
[Result "0-1"]
[TimeControl "90 minutes + 30 seconds"]
[WhiteElo "1707"]
[BlackElo "1757"]

1. d4 {[%clk 01:30:59]} {[%emt 00:00:01]} Nf6 {[%clk 01:30:44]} {[%emt
00:00:16]} 2. Bf4 {[%clk 01:31:17]} {[%emt 00:00:12]} d5 {[%clk 01:31:09]}
{[%emt 00:00:05]} 3. e3 {[%clk 01:31:40]} {[%emt 00:00:07]} Bf5 {[%clk
01:31:04]} {[%emt 00:00:35]} 4. Bd3 {[%clk 01:31:28]} {[%emt 00:00:42]} Bg6
{[%clk 01:31:05]} {[%emt 00:00:29]} 5. Nf3 {[%clk 01:31:20]} {[%emt 00:00:38]}
e6 {[%clk 01:30:49]} {[%emt 00:00:46]} 6. h3 {[%clk 01:27:49]} {[%emt
00:04:00]} c5 {[%clk 01:29:43]} {[%emt 00:01:38]} 7. c3 {[%clk 01:25:29]}
{[%emt 00:02:49]} Qb6 {[%clk 01:29:04]} {[%emt 00:01:08]} 8. b3 {[%clk
01:24:45]} {[%emt 00:01:16]} Nc6 {[%clk 01:28:21]} {[%emt 00:01:13]} 9. Ne5
{[%clk 01:21:59]} {[%emt 00:03:13]} Nxe5 {[%clk 01:25:51]} {[%emt 00:03:03]} 10.
Bxe5 {[%clk 01:21:52]} {[%emt 00:00:37]} Nd7 {[%clk 01:24:21]} {[%emt
00:02:00]} 11. Bh2 {[%clk 01:20:08]} {[%emt 00:02:14]} Bd6 {[%clk 01:22:36]}
{[%emt 00:02:15]} 12. Bxd6 {[%clk 01:20:11]} {[%emt 00:00:26]} Qxd6 {[%clk
01:23:05]} {[%emt 00:00:02]} 13. Bxg6 {[%clk 01:17:47]} {[%emt 00:02:42]} hxg6
{[%clk 01:23:04]} {[%emt 00:00:42]} 14. Nd2 {[%clk 01:16:31]} {[%emt 00:01:47]}
cxd4 {[%clk 01:22:49]} {[%emt 00:00:45]} 15. cxd4 {[%clk 01:13:18]} {[%emt
00:03:42]} Rc8 {[%clk 01:22:04]} {[%emt 00:01:15]} 16. O-O {[%clk 01:11:17]}
{[%emt 00:02:32]} O-O {[%clk 01:21:33]} {[%emt 00:01:01]} 17. Rc1 {[%clk
01:10:11]} {[%emt 00:01:35]} Rc6 {[%clk 01:19:13]} {[%emt 00:02:50]} 18. Nf3
{[%clk 01:07:31]} {[%emt 00:03:11]} Rfc8 {[%clk 01:18:37]} {[%emt 00:01:05]} 19.
Qd2 {[%clk 01:06:40]} {[%emt 00:01:22]} Qc7 {[%clk 01:18:46]} {[%emt 00:00:19]}
20. Rxc6 {[%clk 01:06:52]} {[%emt 00:00:20]} Qxc6 {[%clk 01:19:10]} {[%emt
00:00:06]} 21. Rd1 {[%clk 01:05:51]} {[%emt 00:01:30]} Qc2 {[%clk 01:17:21]}
{[%emt 00:02:19]} 22. Qxc2 {[%clk 01:05:20]} {[%emt 00:01:02]} Rxc2 {[%clk
01:17:45]} {[%emt 00:00:06]} 23. Rd2 {[%clk 01:04:33]} {[%emt 00:01:17]} Rc1+
{[%clk 01:18:12]} {[%emt 00:00:02]} 24. Kh2 {[%clk 01:04:50]} {[%emt 00:00:14]}
Nf6 {[%clk 01:18:22]} {[%emt 00:00:19]} 25. Ne5 {[%clk 01:04:18]} {[%emt
00:01:02]} Ne4 {[%clk 01:17:46]} {[%emt 00:01:05]} 26. Nd3 {[%clk 01:01:37]}
{[%emt 00:03:12]} Rc3 {[%clk 01:15:42]} {[%emt 00:02:30]} 27. Rd1 {[%clk
01:01:05]} {[%emt 00:01:05]} Rc2 {[%clk 01:15:16]} {[%emt 00:00:57]} 28. f3
{[%clk 01:00:25]} {[%emt 00:01:10]} Nd6 {[%clk 01:13:18]} {[%emt 00:02:27]} 29.
Rc1 {[%clk 00:59:40]} {[%emt 00:01:16]} Rxc1 {[%clk 01:11:54]} {[%emt
00:01:55]} 30. Nxc1 {[%clk 00:59:28]} {[%emt 00:00:42]} Nf5 {[%clk 01:12:17]}
{[%emt 00:00:06]} 31. g4 {[%clk 00:58:10]} {[%emt 00:01:48]} Nxe3 {[%clk
01:12:28]} {[%emt 00:00:18]} 32. Kg3 {[%clk 00:58:22]} {[%emt 00:00:19]} Nc2
{[%clk 01:12:43]} {[%emt 00:00:15]} 33. Kf4 {[%clk 00:55:24]} {[%emt 00:03:28]}
Nxd4 {[%clk 01:12:09]} {[%emt 00:01:05]} 34. Ke5 {[%clk 00:55:47]} {[%emt
00:00:07]} Nxf3+ {[%clk 01:12:03]} {[%emt 00:00:36]} 35. Kd6 {[%clk 00:56:10]}
{[%emt 00:00:07]} d4 {[%clk 01:07:54]} {[%emt 00:04:39]} 36. Kc7 {[%clk
00:55:19]} {[%emt 00:01:21]} e5 {[%clk 01:08:02]} {[%emt 00:00:21]} 37. Kxb7
{[%clk 00:55:12]} {[%emt 00:00:38]} e4 {[%clk 01:08:19]} {[%emt 00:00:13]} 38.
Ne2 {[%clk 00:55:10]} {[%emt 00:00:32]} d3 {[%clk 01:08:35]} {[%emt 00:00:14]}
39. Nc3 {[%clk 00:55:30]} {[%emt 00:00:11]} e3 {[%clk 01:08:55]} {[%emt
00:00:09]} 40. Kxa7 {[%clk 00:55:58]} {[%emt 00:00:03]} e2 {[%clk 01:09:13]}
{[%emt 00:00:11]} 41. a4 {[%emt 00:00:39]} e1=Q {[%clk 01:09:32]} 42. Nb5
{[%clk 00:55:56]} {[%emt 00:00:33]} d2 {[%clk 01:09:44]} {[%emt 00:00:18]} 43.
Kb6 {[%clk 00:56:25]} {[%emt 00:00:02]} d1=Q {[%clk 01:10:01]} {[%emt
00:00:12]} 44. a5 {[%clk 00:56:42]} {[%emt 00:00:13]} Qxb3 {[%clk 01:10:16]}
{[%emt 00:00:15]} 45. a6 {[%clk 00:57:06]} {[%emt 00:00:06]} Qeb4 {[%clk
01:10:36]} {[%emt 00:00:09]} 46. a7 {[%clk 00:57:27]} {[%emt 00:00:09]} Qxb5+
{[%clk 01:11:03]} {[%emt 00:00:04]} 47. Kc7 {[%clk 00:57:46]} {[%emt 00:00:12]}
Q3c4+ {[%clk 01:11:16]} {[%emt 00:00:16]} 48. Kd8 {[%emt 00:00:05]} Qbd5+
{[%clk 01:11:26]} {[%emt 00:00:17]} 49. Ke8 {[%clk 00:58:37]} {[%emt 00:00:06]}
Qce4# {[%clk 01:11:50]} {[%emt 00:00:06]} 0-1

[Event "ONJK 2024 ABC"]
[Site "Velp, Netherlands"]
[Date "2024.08.05"]
[Round "5.11"]
[White "Van Groning, Christian"]
[Black "Helderman, Faas"]
[Result "1/2-1/2"]
[TimeControl "90 minutes + 30 seconds"]
[WhiteElo "1778"]
[BlackElo "1603"]

1. e4 {[%clk 01:30:58]} {[%emt 00:00:01]} c6 {[%clk 01:30:53]} {[%emt
00:00:07]} 2. c4 {[%clk 01:31:14]} {[%emt 00:00:14]} d5 {[%clk 01:31:14]}
{[%emt 00:00:09]} 3. cxd5 {[%clk 01:31:39]} {[%emt 00:00:05]} cxd5 {[%clk
01:31:33]} {[%emt 00:00:11]} 4. exd5 {[%clk 01:32:06]} {[%emt 00:00:04]} Nf6
{[%clk 01:31:45]} {[%emt 00:00:17]} 5. Nc3 {[%clk 01:32:09]} {[%emt 00:00:27]}
Nxd5 {[%clk 01:31:14]} {[%emt 00:01:01]} 6. Bc4 {[%clk 01:32:27]} {[%emt
00:00:13]} Nb6 {[%clk 01:31:15]} {[%emt 00:00:28]} 7. Bb3 {[%clk 01:32:31]}
{[%emt 00:00:26]} g6 {[%clk 01:30:55]} {[%emt 00:00:49]} 8. d4 {[%clk
01:32:42]} {[%emt 00:00:20]} Nc6 {[%clk 01:30:44]} {[%emt 00:00:41]} 9. Nf3
{[%clk 01:32:58]} {[%emt 00:00:14]} Bg7 {[%clk 01:30:03]} {[%emt 00:01:11]} 10.
d5 {[%clk 01:32:47]} {[%emt 00:00:42]} Na5 {[%clk 01:29:34]} {[%emt 00:00:59]}
11. Ba4+ {[%clk 01:32:52]} {[%emt 00:00:24]} Bd7 {[%clk 01:23:22]} {[%emt
00:06:41]} 12. Bxd7+ {[%clk 01:27:47]} {[%emt 00:05:36]} Qxd7 {[%clk 01:23:44]}
{[%emt 00:00:08]} 13. O-O {[%clk 01:27:57]} {[%emt 00:00:21]} O-O {[%clk
01:22:39]} {[%emt 00:01:34]} 14. Re1 {[%clk 01:27:47]} {[%emt 00:00:41]} Rfe8
{[%clk 01:14:43]} {[%emt 00:08:24]} 15. Bf4 {[%clk 01:27:30]} {[%emt 00:00:44]}
Nac4 {[%clk 01:12:44]} {[%emt 00:02:33]} 16. Ne5 {[%clk 01:26:24]} {[%emt
00:01:35]} Nxe5 {[%clk 01:08:53]} {[%emt 00:04:22]} 17. Bxe5 {[%clk 01:26:46]}
{[%emt 00:00:07]} Rad8 {[%clk 01:06:36]} {[%emt 00:02:47]} 18. Bxg7 {[%clk
01:25:51]} {[%emt 00:01:27]} Kxg7 {[%clk 01:06:56]} {[%emt 00:00:09]} 19. Qb3
{[%clk 01:26:06]} {[%emt 00:00:13]} Nxd5 {[%clk 00:58:09]} {[%emt 00:09:20]} 20.
Rad1 {[%clk 01:25:06]} {[%emt 00:01:29]} e6 {[%clk 00:58:29]} {[%emt 00:00:10]}
21. h3 {[%clk 01:23:44]} {[%emt 00:01:53]} Qc6 {[%clk 00:49:57]} {[%emt
00:09:01]} 22. Nxd5 {[%clk 01:22:54]} {[%emt 00:01:20]} exd5 {[%clk 00:50:16]}
{[%emt 00:00:11]} 23. Rxe8 {[%clk 01:22:40]} {[%emt 00:00:44]} Rxe8 {[%clk
00:50:35]} {[%emt 00:00:10]} 24. Rxd5 {[%clk 01:19:16]} {[%emt 00:03:55]} Re1+
{[%clk 00:49:11]} {[%emt 00:01:53]} 25. Kh2 {[%clk 01:18:55]} {[%emt 00:00:52]}
Qc7+ {[%clk 00:49:28]} {[%emt 00:00:13]} 26. Qg3 {[%clk 01:19:12]} {[%emt
00:00:12]} Qxg3+ {[%clk 00:43:32]} {[%emt 00:06:27]} 1/2-1/2